bitfinex-derivatives/quotes_BTCF0:USTF0_20250718
["timestamp","ask_amount","ask_price","bid_price","bid_amount"]
[1752804004980,0.7981838,120450.0,120440.0,1.81230612]
[1752804005281,0.7981838,120450.0,120440.0,1.7676266]
[1752804005683,0.7981838,120450.0,120440.0,1.35815772]
[1752804005883,0.7981838,120450.0,120440.0,1.81230612]
[1752804006581,0.1679038,120450.0,120440.0,1.81230612]
[1752804006780,0.7975438,120450.0,120440.0,1.40283724]
[1752804006981,0.57802268,120450.0,120440.0,1.19224012]
[1752804007176,1.33304746,120450.0,120440.0,1.19224012]
[1752804007383,1.33300746,120450.0,120440.0,1.19224012]
[1752804007583,1.33340746,120450.0,120440.0,1.19224012]
[1752804008482,0.92393858,120450.0,120440.0,1.19224012]
[1752804008680,1.33340746,120450.0,120440.0,1.19224012]
[1752804008880,1.33340746,120450.0,120440.0,0.83144012]
[1752804009083,0.92353858,120450.0,120440.0,0.80156942]
[1752804009282,0.92289858,120450.0,120440.0,1.16236942]
[1752804009481,0.70308746,120450.0,120440.0,1.16236942]
[1752804009688,1.33228746,120450.0,120440.0,1.16236942]
[1752804010089,0.29361858,120450.0,120440.0,1.16236942]
[1752804010292,0.92441858,120450.0,120440.0,1.16236942]
[1752804010490,0.92441858,120450.0,120440.0,0.80156942]
[1752804010685,1.33384746,120450.0,120440.0,1.16236942]
[1752804010890,0.70308746,120450.0,120440.0,1.16236942]
[1752804011491,1.33388746,120450.0,120440.0,0.80156942]
[1752804011689,0.92441858,120450.0,120440.0,0.80156942]
[1752804011892,0.70308746,120450.0,120440.0,0.80156942]
[1752804012191,1.33372746,120450.0,120440.0,0.80156942]
[1752804013194,1.33408746,120450.0,120440.0,0.80156942]
[1752804014692,1.33408746,120450.0,120440.0,0.30156942]
[1752804016091,0.92461858,120450.0,120440.0,0.30156942]
[1752804016288,1.33408746,120450.0,120440.0,0.30156942]
[1752804016602,1.47375634,120450.0,120440.0,0.07481942]
[1752804016790,2.10267634,120450.0,120440.0,0.07441942]
[1752804016991,1.47375634,120450.0,120440.0,0.07441942]
[1752804017294,1.69312746,120450.0,120440.0,0.07441942]
[1752804017492,1.28365858,120450.0,120440.0,0.07441942]
[1752804017692,1.69312746,120450.0,120440.0,0.18775942]
[1752804018088,1.06428746,120450.0,120440.0,0.18775942]
[1752804018294,1.69252746,120450.0,120440.0,0.18775942]
[1752804020994,1.69196746,120450.0,120440.0,0.18775942]
[1752804021293,1.06428746,120450.0,120440.0,0.21119942]
[1752804021493,1.69184746,120450.0,120440.0,0.21119942]
[1752804021996,1.06428746,120450.0,120440.0,0.21119942]
[1752804022491,1.69136746,120450.0,120440.0,0.21119942]
[1752804022892,1.69136746,120450.0,120440.0,0.18775942]
[1752804023789,1.06428746,120450.0,120440.0,0.18775942]
[1752804023994,1.69060746,120450.0,120440.0,0.18775942]
[1752804024394,1.70892879,120450.0,120440.0,0.18775942]
[1752804028498,1.72583361,120450.0,120440.0,0.18775942]
[1752804029200,1.09951361,120450.0,120440.0,0.18775942]
[1752804029400,1.72443361,120450.0,120440.0,0.18775942]
[1752804029902,1.09951361,120450.0,120440.0,0.07441942]
[1752804030101,2.13302249,120450.0,120440.0,0.07441942]
[1752804030397,2.13430249,120450.0,120440.0,0.07441942]
[1752804030598,2.13434249,120450.0,120440.0,0.07441942]
[1752804031301,1.50898249,120450.0,120440.0,0.07441942]
[1752804031502,2.1344611,120450.0,120440.0,0.07441942]
[1752804032806,2.1344611,120450.0,120440.0,0.00842192]
[1752804033105,1.31552334,120450.0,120440.0,0.00842192]
[1752804033305,2.1344611,120450.0,120440.0,0.00842192]
[1752804034207,2.1339811,120450.0,120440.0,0.00842192]
[1752804037513,2.1330611,120450.0,120440.0,0.00842192]
[1752804039313,2.1330611,120450.0,120440.0,2e-08]
[1752804039710,0.1659305,120430.0,120420.0,0.13475]
[1752804039912,0.165958,120410.0,120400.0,0.44907]
[1752804040215,1.34095807,120410.0,120400.0,0.44907]
[1752804040608,1.32403923,120410.0,120400.0,0.55923]
[1752804041206,1.32503923,120410.0,120400.0,0.56623]
[1752804041411,0.93245148,120410.0,120400.0,0.20543]
[1752804041612,1.34196036,120410.0,120400.0,0.20543]
[1752804041812,0.93249148,120410.0,120400.0,0.56623]
[1752804042019,0.30841148,120410.0,120400.0,0.59082]
[1752804042213,0.93249148,120410.0,120400.0,0.59082]
[1752804042614,0.99910964,120410.0,120400.0,0.59082]
[1752804042914,1.40857852,120410.0,120400.0,0.83173999]
[1752804043111,0.30841148,120410.0,120400.0,0.83173999]
[1752804043311,0.94092641,120410.0,120400.0,0.83173999]
[1752804043612,0.31684641,120410.0,120400.0,0.83173999]
[1752804043807,1.35039529,120410.0,120400.0,0.83173999]
[1752804045516,0.72631529,120410.0,120400.0,0.83173999]
[1752804045816,1.35039529,120410.0,120400.0,0.83173999]
[1752804046012,0.31684641,120410.0,120400.0,0.83173999]
[1752804046217,1.35039529,120410.0,120400.0,0.83173999]
[1752804046411,0.72631529,120410.0,120400.0,0.42686999]
[1752804046613,1.35035529,120410.0,120400.0,0.42686999]
[1752804046807,2.49887529,120410.0,120400.0,0.35807999]
[1752804047116,2.25442164,120410.0,120400.0,0.35807999]
[1752804047312,2.87946164,120410.0,120400.0,0.25791999]
[1752804047715,2.94490963,120410.0,120400.0,0.25791999]
[1752804048018,2.94490963,120410.0,120400.0,0.36807999]
[1752804048713,2.32086963,120410.0,120400.0,0.36807999]
[1752804048919,2.94494963,120410.0,120400.0,0.39266999]
[1752804050012,2.94490963,120410.0,120400.0,0.39266999]
[1752804051015,2.94490963,120410.0,120400.0,0.36807999]
[1752804053023,2.53544075,120410.0,120400.0,0.36807999]
[1752804053224,2.94490963,120410.0,120400.0,0.36807999]
[1752804053721,2.89644251,120410.0,120400.0,0.25791999]
[1752804053922,3.52052251,120410.0,120400.0,0.25791999]
[1752804054121,2.53544075,120410.0,120400.0,0.37125999]
[1752804054314,2.32086963,120410.0,120400.0,0.39607999]
[1752804054514,2.94490963,120410.0,120400.0,0.39607999]
[1752804054823,2.32086963,120410.0,120400.0,0.39607999]
[1752804055024,2.94490963,120410.0,120400.0,0.39607999]
[1752804056725,2.94494963,120410.0,120400.0,0.39607999]
[1752804057330,2.53548075,120410.0,120400.0,0.39607999]
[1752804057830,2.94394963,120410.0,120400.0,0.39107999]
[1752804059237,2.94394963,120410.0,120400.0,0.36625999]
[1752804059637,3.35341851,120410.0,120400.0,0.25291999]
[1752804059834,3.35237851,120410.0,120400.0,0.24691999]
[1752804060633,3.41191635,120410.0,120400.0,0.20156579]
[1752804060942,3.41191635,120410.0,120400.0,0.05657629]
[1752804061141,3.35237851,120410.0,120400.0,9e-08]
[1752804061336,3.57802035,120410.0,120400.0,9e-08]
[1752804061534,2.89444251,120410.0,120400.0,9e-08]
[1752804061737,0.28488405,120390.0,120380.0,0.04715]
[1752804061942,0.1660734,120370.0,120360.0,0.07197]
[1752804062142,0.319771,120350.0,120340.0,0.44918]
[1752804062344,1.35323988,120350.0,120340.0,0.08838]
[1752804062544,0.87020431,120350.0,120340.0,0.08838]
[1752804062844,1.50236655,120350.0,120340.0,0.08838]
[1752804063044,1.42299655,120350.0,120340.0,0.08838]
[1752804063245,0.87836655,120350.0,120340.0,0.08838]
[1752804063446,1.51392655,120350.0,120340.0,0.08838]
[1752804063643,1.49692682,120350.0,120340.0,0.08838]
[1752804063843,1.51389492,120350.0,120340.0,0.15457]
[1752804064044,0.88989492,120350.0,120340.0,0.17939]
[1752804064243,1.51389492,120350.0,120340.0,0.46745999]
[1752804064643,0.89189492,120350.0,120340.0,0.48245999]
[1752804064843,1.51585492,120350.0,120340.0,0.48245999]
[1752804065240,0.89289492,120350.0,120340.0,0.48845999]
[1752804065441,1.51685492,120350.0,120340.0,0.48845999]
[1752804065747,0.82504492,120350.0,120340.0,0.48845999]
[1752804066047,1.42592492,120350.0,120340.0,0.84925999]
[1752804066348,0.80196492,120350.0,120340.0,0.48845999]
[1752804066648,1.44904492,120350.0,120340.0,0.48845999]
[1752804067144,1.50533492,120350.0,120340.0,0.48845999]
[1752804068341,0.88133492,120350.0,120340.0,0.48845999]
[1752804068539,1.51689492,120350.0,120340.0,0.48845999]
[1752804069143,0.48342604,120350.0,120340.0,0.48845999]
[1752804069446,1.51689492,120350.0,120340.0,0.48845999]
[1752804070548,1.51589492,120350.0,120340.0,0.48245999]
[1752804070748,1.51689492,120350.0,120340.0,0.48945999]
[1752804071149,0.89289492,120350.0,120340.0,0.48945999]
[1752804071350,1.51689492,120350.0,120340.0,0.48945999]
[1752804071750,1.09582604,120350.0,120340.0,0.48945999]
[1752804071951,1.50529492,120350.0,120340.0,0.48945999]
[1752804073452,1.50529492,120350.0,120340.0,0.49045999]
[1752804075156,1.87761492,120350.0,120340.0,0.49045999]
[1752804075355,1.25369492,120350.0,120340.0,0.49045999]
[1752804075555,1.87757492,120350.0,120340.0,0.49045999]
[1752804076051,1.51677492,120350.0,120340.0,0.49045999]
[1752804076250,1.87757492,120350.0,120340.0,0.44526999]
[1752804077156,0.89289492,120350.0,120340.0,0.49045999]
[1752804077355,1.51673492,120350.0,120340.0,0.49045999]
[1752804078360,0.88133492,120350.0,120340.0,0.49045999]
[1752804078560,1.50517492,120350.0,120340.0,0.49045999]
[1752804078858,1.51673492,120350.0,120340.0,0.49045999]
[1752804079353,1.51669492,120350.0,120340.0,0.44526999]
[1752804079559,1.25369492,120350.0,120340.0,0.31106999]
[1752804079859,1.87745492,120350.0,120340.0,0.26391999]
[1752804080261,0.06263,120340.0,120320.0,0.09101]
[1752804080462,2.10000636,120330.0,120320.0,0.13816]
[1752804080662,2.11697446,120330.0,120320.0,0.13816]
[1752804080961,1.47182298,120330.0,120320.0,0.13816]
[1752804081156,1.83262298,120330.0,120320.0,0.13816]
[1752804081362,1.20890298,120330.0,120320.0,0.13816]
[1752804081563,1.83262298,120330.0,120320.0,0.18135]
[1752804081762,1.83262298,120330.0,120320.0,0.22654]
[1752804081964,1.20890298,120330.0,120320.0,0.22654]
[1752804082161,1.19734298,120330.0,120320.0,0.22654]
[1752804082562,1.83262298,120330.0,120320.0,0.07197]
[1752804082764,2.24305186,120330.0,120320.0,0.04915]
[1752804082964,2.24305186,120330.0,120320.0,0.002]
[1752804083164,1.4241141,120330.0,120320.0,0.002]
[1752804083364,2.24305186,120330.0,120320.0,0.24291999]
[1752804083568,1.61937186,120330.0,120320.0,0.24291999]
[1752804083769,2.24305186,120330.0,120320.0,0.24291999]
[1752804083970,1.83358298,120330.0,120320.0,0.29283999]
[1752804084270,1.83358298,120330.0,120320.0,0.31633999]
[1752804084461,1.20990298,120330.0,120320.0,0.38351999]
[1752804084667,1.27507377,120330.0,120320.0,0.42879999]
[1752804084864,1.89875377,120330.0,120320.0,0.42879999]
[1752804085165,1.27507377,120330.0,120320.0,0.42879999]
[1752804085469,1.89871377,120330.0,120320.0,0.31633999]
[1752804085665,2.30818265,120330.0,120320.0,0.29283999]
[1752804085865,2.30918265,120330.0,120320.0,0.24291999]
[1752804086471,1.68554265,120330.0,120320.0,0.24291999]
[1752804086971,2.30918265,120330.0,120320.0,0.24291999]
[1752804088271,1.68554265,120330.0,120320.0,0.38351999]
[1752804088474,1.89863377,120330.0,120320.0,0.38351999]
[1752804088661,1.89963377,120330.0,120320.0,0.38351999]
[1752804088862,1.68554265,120330.0,120320.0,0.38351999]
[1752804089067,2.30910265,120330.0,120320.0,0.31633999]
[1752804089269,1.68554265,120330.0,120320.0,0.31633999]
[1752804089776,2.31310265,120330.0,120320.0,0.31433999]
[1752804090869,1.68954265,120330.0,120320.0,0.31433999]
[1752804091076,2.31306265,120330.0,120320.0,0.31433999]
[1752804091467,1.68954265,120330.0,120320.0,0.31433999]
[1752804091773,2.31302265,120330.0,120320.0,0.31433999]
[1752804091973,2.31302265,120330.0,120320.0,0.38151999]
[1752804092878,1.90355377,120330.0,120320.0,0.38151999]
[1752804093372,2.31302265,120330.0,120320.0,0.38151999]
[1752804094873,0.2779824,120320.0,120310.0,0.04992]
[1752804095072,2.11667795,120320.0,120310.0,0.04992]
[1752804095277,1.61814196,120320.0,120310.0,0.04992]
[1752804095572,0.1660962,120310.0,120300.0,0.09068]
[1752804095769,2.47731318,120310.0,120300.0,0.1406]
[1752804095972,1.9780353,120310.0,120300.0,0.1406]
[1752804096172,2.3388353,120310.0,120300.0,0.04992]
[1752804096372,2.9621553,120310.0,120300.0,0.04992]
[1752804097072,2.3408353,120310.0,120300.0,0.05092]
[1752804097272,0.2452077,120280.0,120270.0,0.54554]
[1752804097478,0.65467658,120280.0,120270.0,0.54554]
[1752804097678,0.77967089,120280.0,120270.0,0.54554]
[1752804097973,1.42166783,120280.0,120270.0,0.54554]
[1752804098174,1.42162783,120280.0,120270.0,0.54554]
[1752804098381,1.46900783,120280.0,120270.0,0.54554]
[1752804098582,1.08475958,120280.0,120270.0,0.54554]
[1752804098785,0.87098846,120280.0,120270.0,0.54554]
[1752804099083,0.87098846,120280.0,120270.0,0.78645999]
[1752804099276,1.55902846,120280.0,120270.0,0.83637999]
[1752804099470,1.15255958,120280.0,120270.0,0.83637999]
[1752804099771,0.93874846,120280.0,120270.0,0.83637999]
[1752804099975,0.34006958,120280.0,120270.0,0.83637999]
[1752804100176,0.32309683,120280.0,120270.0,1.25266799]
[1752804100382,0.94629683,120280.0,120270.0,1.66213687]
[1752804100782,0.94629683,120280.0,120270.0,1.75266799]
[1752804100981,0.94629683,120280.0,120270.0,2.16213687]
[1752804101183,0.94629683,120280.0,120270.0,1.50266799]
[1752804101482,0.94629683,120280.0,120270.0,1.91213687]
[1752804102078,0.94613616,120280.0,120270.0,1.91213687]
[1752804103781,0.31468828,120280.0,120270.0,1.66881969]
[1752804103974,0.13969397,120280.0,120270.0,2.32828857]
[1752804104180,0.6410477,120280.0,120270.0,2.00189449]
[1752804104379,0.1661377,120280.0,120270.0,2.18768857]
[1752804104583,0.7892577,120280.0,120270.0,1.77821969]
[1752804104784,0.7892577,120280.0,120270.0,2.18768857]
[1752804104987,0.7892577,120280.0,120270.0,1.79523969]
[1752804105278,0.7892577,120280.0,120270.0,2.20470857]
[1752804105683,0.7721877,120280.0,120270.0,2.20470857]
[1752804106081,0.2491955,120290.0,120280.0,0.1661379]
[1752804106286,0.8722755,120290.0,120280.0,0.93640678]
[1752804106485,0.8722755,120290.0,120280.0,1.35267878]
[1752804106681,0.78921,120290.0,120280.0,1.35267878]
[1752804107386,0.16613,120290.0,120280.0,1.3608825]
[1752804107587,1.3572496,120300.0,120290.0,0.1661241]
[1752804107782,0.01695532,120300.0,120290.0,0.93639298]
[1752804107988,0.2076325,120310.0,120300.0,0.1661103]
[1752804108182,0.2076325,120310.0,120300.0,0.93637918]
[1752804108183,0.18306289,120310.0,120300.0,0.93637918]
[1752804108381,0.80606289,120310.0,120300.0,1.10262718]
[1752804108777,0.7891084,120310.0,120300.0,1.10262718]
[1752804108979,0.80606759,120310.0,120300.0,1.10262718]
[1752804109182,0.7890684,120310.0,120300.0,1.10262718]
[1752804109683,0.7890684,120310.0,120300.0,0.6931583]
[1752804109986,0.7890684,120310.0,120300.0,1.10262718]
[1752804110186,0.7890684,120310.0,120300.0,1.34354717]
[1752804111281,0.7900684,120310.0,120300.0,1.34454717]
[1752804111477,0.7920684,120310.0,120300.0,1.84854717]
[1752804111682,0.7919484,120310.0,120300.0,1.44981829]
[1752804111992,0.7919484,120310.0,120300.0,1.85928717]
[1752804112286,0.1691084,120310.0,120300.0,1.85928717]
[1752804112587,0.7919084,120310.0,120300.0,1.85928717]
[1752804112787,0.1691084,120310.0,120300.0,1.85928717]
[1752804113185,0.7919084,120310.0,120300.0,1.85928717]
[1752804113687,0.7918684,120310.0,120300.0,1.44981829]
[1752804114089,0.7918684,120310.0,120300.0,1.85928717]
[1752804114291,0.8415084,120310.0,120300.0,1.85928717]
[1752804114496,0.9129184,120310.0,120300.0,1.85928717]
[1752804115392,0.9364484,120310.0,120300.0,1.85928717]
[1752804116288,0.9129184,120310.0,120300.0,1.85928717]
[1752804118193,0.2901584,120310.0,120300.0,1.85928717]
[1752804118390,0.12105,120330.0,120320.0,0.124556]
[1752804118694,0.287119,120330.0,120320.0,1.46322748]
[1752804118896,0.287119,120330.0,120320.0,1.62944348]
[1752804119095,0.74357,120330.0,120320.0,1.62944348]
[1752804119394,0.12105,120330.0,120320.0,1.62944348]
[1752804119590,0.74353,120330.0,120320.0,1.62944348]
[1752804119796,0.74349,120330.0,120320.0,1.62944348]
[1752804120297,0.909559,120330.0,120320.0,1.87036347]
[1752804120597,0.914559,120330.0,120320.0,1.46289459]
[1752804120796,0.914559,120330.0,120320.0,1.87236347]
[1752804121096,0.94651023,120330.0,120320.0,1.87236347]
[1752804121298,0.94629294,120330.0,120320.0,1.87236347]
[1752804121993,0.315649,120330.0,120320.0,1.87236347]
[1752804122196,0.406729,120330.0,120320.0,0.96451999]
[1752804122392,1.43855788,120330.0,120320.0,1.13060279]
[1752804123103,1.029089,120330.0,120320.0,1.13060279]
[1752804123302,0.41514691,120330.0,120320.0,1.13060279]
[1752804123507,1.03742691,120330.0,120320.0,1.63060279]
[1752804123804,1.03742691,120330.0,120320.0,2.04007167]
[1752804123999,1.03742691,120330.0,120320.0,1.63060279]
[1752804124503,1.03742691,120330.0,120320.0,2.04007167]
[1752804125005,1.03742691,120330.0,120320.0,1.63060279]
[1752804126500,1.03726691,120330.0,120320.0,2.04007167]
[1752804127705,1.03726691,120330.0,120320.0,1.63060279]
[1752804127905,1.03726691,120330.0,120320.0,2.04007167]
[1752804128706,0.41514691,120330.0,120320.0,2.04007167]
[1752804128906,1.03718691,120330.0,120320.0,2.04007167]
[1752804129502,1.03718691,120330.0,120320.0,1.63060279]
[1752804129797,0.41514691,120330.0,120320.0,1.63060279]
[1752804129998,0.12605,120330.0,120320.0,2.21444052]
[1752804130300,0.005,120330.0,120320.0,2.6239094]
[1752804130506,0.62696,120330.0,120320.0,2.25912004]
[1752804131010,0.62696,120330.0,120320.0,2.73543829]
[1752804132004,0.005,120330.0,120320.0,2.32596941]
[1752804132709,0.171069,120330.0,120320.0,2.32596941]
[1752804132908,0.292119,120330.0,120320.0,2.31781656]
[1752804133108,0.292119,120330.0,120320.0,1.90834768]
[1752804133309,0.292119,120330.0,120320.0,2.31781656]
[1752804133912,0.292119,120330.0,120320.0,1.90834768]
[1752804134107,0.292119,120330.0,120320.0,2.31781656]
[1752804134307,0.315649,120330.0,120320.0,2.15160056]
[1752804136011,0.937329,120330.0,120320.0,2.15160056]
[1752804136210,0.937329,120330.0,120320.0,1.74213168]
[1752804136409,0.937329,120330.0,120320.0,2.15160056]
[1752804138213,0.937329,120330.0,120320.0,2.10692104]
[1752804139214,0.937329,120330.0,120320.0,1.69745216]
[1752804139509,0.937329,120330.0,120320.0,2.10692104]
[1752804140013,0.937209,120330.0,120320.0,2.10692104]
[1752804141110,0.937209,120330.0,120320.0,2.16649374]
[1752804141813,0.937209,120330.0,120320.0,2.10692104]
[1752804142014,0.937209,120330.0,120320.0,2.16649374]
[1752804142214,1.016569,120330.0,120320.0,2.10692104]
[1752804143815,0.315649,120330.0,120320.0,2.10692104]
[1752804144216,0.936969,120330.0,120320.0,2.10692104]
[1752804146220,0.936969,120330.0,120320.0,1.69745216]
[1752804146419,0.936969,120330.0,120320.0,2.10692104]
[1752804147513,0.315649,120330.0,120320.0,2.10692104]
[1752804147719,0.936769,120330.0,120320.0,2.10692104]
[1752804148016,0.315649,120330.0,120320.0,2.10692104]
[1752804148520,0.936729,120330.0,120320.0,2.10692104]
[1752804148720,0.14958,120330.0,120320.0,2.10692104]
[1752804148921,0.74713,120330.0,120320.0,2.57596262]
[1752804149120,0.9107811,120330.0,120320.0,0.80249269]
[1752804149315,0.9107811,120330.0,120320.0,0.74291999]
[1752804149316,0.95944998,120330.0,120320.0,0.74291999]
[1752804149514,0.56687886,120330.0,120320.0,1.10371999]
[1752804150325,0.97634774,120330.0,120320.0,1.10371999]
[1752804150716,1.33714774,120330.0,120320.0,0.74291999]
[1752804150917,1.33714774,120330.0,120320.0,0.71791999]
[1752804150918,2.81671262,120330.0,120320.0,0.71791999]
[1752804151117,2.81671262,120330.0,120300.0,0.40554294]
[1752804151118,0.4006064,120310.0,120300.0,0.3608]
[1752804151316,1.0550064,120310.0,120300.0,0.3608]
[1752804151626,1.5885628,120310.0,120300.0,0.3608]
[1752804152032,0.95104575,120310.0,120300.0,0.3608]
[1752804152323,0.2567103,120300.0,120290.0,0.81398544]
[1752804152517,0.2567103,120300.0,120290.0,1.17871138]
[1752804152518,0.0168727,120300.0,120290.0,1.17871138]
[1752804152724,0.3764111,120320.0,120310.0,0.2607764]
[1752804152921,1.0474019,120320.0,120310.0,0.7692164]
[1752804153128,0.98890701,120320.0,120310.0,1.53948528]
[1752804153322,1.15498961,120320.0,120310.0,1.6300164]
[1752804153619,0.50094961,120320.0,120310.0,1.67475934]
[1752804153820,1.15470961,120320.0,120310.0,1.67475934]
[1752804154020,1.15570961,120320.0,120310.0,1.67575934]
[1752804154219,0.50494961,120320.0,120310.0,1.91767933]
[1752804154420,1.15858961,120320.0,120310.0,1.91767933]
[1752804154622,0.33886701,120320.0,120310.0,2.32714821]
[1752804154929,0.166055,120340.0,120330.0,0.4083888]
[1752804155224,1.46295388,120340.0,120330.0,1.20483999]
[1752804155421,0.81003388,120340.0,120330.0,1.20483999]
[1752804155930,1.46283388,120340.0,120330.0,1.20483999]
[1752804156137,1.46283388,120340.0,120330.0,1.70483999]
[1752804156433,1.47083388,120340.0,120330.0,1.70683999]
[1752804156623,1.061365,120340.0,120330.0,1.70683999]
[1752804156824,0.408565,120340.0,120330.0,1.87290879]
[1752804157125,1.46975388,120340.0,120330.0,1.87290879]
[1752804157425,1.46987388,120340.0,120330.0,1.91757076]
[1752804157824,1.46987388,120340.0,120330.0,1.75150196]
[1752804158027,1.036215,120340.0,120330.0,1.91757076]
[1752804158426,0.384375,120340.0,120330.0,1.91757076]
[1752804158626,1.035295,120340.0,120330.0,1.91757076]
[1752804159128,1.05191485,120340.0,120330.0,2.28237767]
[1752804159525,1.05191485,120340.0,120330.0,1.87290879]
[1752804161232,1.05079485,120340.0,120330.0,1.87290879]
[1752804162132,1.033135,120340.0,120330.0,1.87290879]
[1752804162532,1.033135,120340.0,120330.0,2.28237767]
[1752804162734,0.384375,120340.0,120330.0,2.28237767]
[1752804163034,1.033135,120340.0,120330.0,2.28237767]
[1752804165429,1.033135,120340.0,120330.0,1.87290879]
[1752804165630,1.033135,120340.0,120330.0,2.28237767]
[1752804165825,0.384375,120340.0,120330.0,2.28237767]
[1752804166031,1.031535,120340.0,120330.0,2.28237767]
[1752804166336,1.031535,120340.0,120330.0,1.87290879]
[1752804166633,1.031535,120340.0,120330.0,2.28237767]
[1752804167731,1.030895,120340.0,120330.0,1.87290879]
[1752804168732,0.384375,120340.0,120330.0,1.87290879]
[1752804169036,1.029695,120340.0,120330.0,1.91757076]
[1752804169738,0.384375,120340.0,120330.0,1.91757076]
[1752804170037,1.029095,120340.0,120330.0,1.91757076]
[1752804171036,1.029095,120340.0,120330.0,1.87290879]
[1752804172539,1.027175,120340.0,120330.0,1.87290879]
[1752804173340,0.384375,120340.0,120330.0,1.87290879]
[1752804173641,1.026095,120340.0,120330.0,1.87290879]
[1752804174240,0.384375,120340.0,120330.0,1.87290879]
[1752804174437,1.025655,120340.0,120330.0,1.91757076]
[1752804174638,0.384375,120340.0,120330.0,1.91757076]
[1752804174839,1.025455,120340.0,120330.0,1.91757076]
[1752804175141,1.025455,120340.0,120330.0,2.32703964]
[1752804175439,1.025455,120340.0,120330.0,2.28237767]
[1752804175938,1.025455,120340.0,120330.0,2.32703964]
[1752804176640,1.025455,120340.0,120330.0,2.28237767]
[1752804177136,1.025455,120340.0,120330.0,1.91757076]
[1752804177337,1.025455,120340.0,120330.0,1.87290879]
[1752804177543,1.024215,120340.0,120330.0,1.87290879]
[1752804177932,0.81781388,120340.0,120330.0,1.33963196]
[1752804178140,0.94232939,120340.0,120330.0,0.74291999]
[1752804178436,0.94232939,120340.0,120330.0,0.45797999]
[1752804178437,2.39423208,120340.0,120330.0,0.45797999]
[1752804178642,2.39423208,120340.0,120330.0,0.45551999]
[1752804178841,1.75491208,120340.0,120330.0,0.45551999]
[1752804179044,0.1660828,120320.0,120310.0,0.51021]
[1752804179241,1.21447168,120320.0,120310.0,0.51021]
[1752804179444,1.33893786,120320.0,120310.0,0.51021]
[1752804180139,0.29154898,120320.0,120310.0,0.60483]
[1752804180340,0.76378618,120320.0,120310.0,1.18039548]
[1752804180638,0.64132,120320.0,120310.0,1.22605745]
[1752804180843,0.64132,120320.0,120310.0,1.18139548]
[1752804181435,0.64112,120320.0,120310.0,1.18139548]
[1752804181744,0.8072028,120320.0,120310.0,1.92231547]
[1752804182136,0.8072028,120320.0,120310.0,1.98188817]
[1752804182647,0.8072028,120320.0,120310.0,2.04944375]
[1752804182847,0.8068028,120320.0,120310.0,2.03459829]
[1752804183141,0.8068028,120320.0,120310.0,1.98987105]
[1752804184546,0.8068028,120320.0,120310.0,1.58040217]
[1752804184845,0.8057628,120320.0,120310.0,1.98987105]
[1752804185945,0.1690828,120320.0,120310.0,1.98987105]
[1752804186145,0.8049628,120320.0,120310.0,1.98987105]
[1752804186750,0.1690828,120320.0,120310.0,1.98987105]
[1752804186951,0.8049628,120320.0,120310.0,1.98987105]
[1752804187150,0.1690828,120320.0,120310.0,1.98987105]
[1752804187449,0.8042428,120320.0,120310.0,1.98987105]
[1752804187950,0.8042028,120320.0,120310.0,1.98987105]
[1752804188551,0.8042028,120320.0,120310.0,2.04944375]
[1752804189051,0.8042028,120320.0,120310.0,1.98987105]
[1752804189248,0.8042028,120320.0,120310.0,1.63997487]
[1752804189449,0.8042028,120320.0,120310.0,2.04944375]
[1752804191255,0.8042028,120320.0,120310.0,1.63997487]
[1752804191555,0.8031228,120320.0,120310.0,2.04944375]
[1752804191754,0.8034828,120320.0,120310.0,2.04944375]
[1752804193350,0.8829669,120340.0,120330.0,0.409099]
[1752804193557,0.8829669,120340.0,120330.0,1.17544664]
[1752804193756,0.3732654,120340.0,120330.0,1.58491552]
[1752804194256,1.0067854,120340.0,120330.0,1.58491552]
[1752804194462,1.0087854,120340.0,120330.0,1.58491552]
[1752804194662,1.0087854,120340.0,120330.0,1.17544664]
[1752804195258,1.0087854,120340.0,120330.0,1.41636663]
[1752804195564,1.0087854,120340.0,120330.0,1.91636663]
[1752804195964,1.0127854,120340.0,120330.0,1.91736663]
[1752804199264,1.02970403,120340.0,120330.0,1.87261899]
[1752804204770,1.43917291,120340.0,120330.0,1.87261899]
[1752804205365,1.44148291,120340.0,120330.0,1.87261899]
[1752804205870,0.81929291,120340.0,120330.0,1.25212999]
[1752804206070,1.03730403,120340.0,120330.0,1.25212999]
[1752804206261,1.44713291,120340.0,120330.0,1.25212999]
[1752804206465,1.44709291,120340.0,120330.0,1.25212999]
[1752804206766,1.44709291,120340.0,120330.0,0.78410999]
[1752804207371,1.44709291,120340.0,120330.0,0.83517999]
[1752804208065,1.44709291,120340.0,120330.0,0.75212999]
[1752804208272,0.81929291,120340.0,120330.0,0.72785999]
[1752804208464,0.81929291,120340.0,120330.0,0.24191999]
[1752804208465,1.18009291,120340.0,120330.0,0.24191999]
[1752804208668,2.22309291,120340.0,120330.0,0.11312298]
[1752804208969,2.22317291,120340.0,120330.0,0.11312298]
[1752804209863,1.59629291,120340.0,120330.0,0.11312298]
[1752804210068,2.22293291,120340.0,120330.0,0.11312298]
[1752804210472,1.59629291,120340.0,120330.0,0.11312298]
[1752804210977,2.22257291,120340.0,120330.0,0.11312298]
[1752804212276,1.61177291,120340.0,120330.0,0.11312298]
[1752804212476,1.97257291,120340.0,120330.0,0.11312298]
[1752804212675,1.61177291,120340.0,120330.0,0.11312298]
[1752804212978,1.97257291,120340.0,120330.0,0.11312298]
[1752804213874,1.95565428,120340.0,120330.0,0.11312298]
[1752804214080,1.59485428,120340.0,120330.0,0.11312298]
[1752804214275,0.96857428,120340.0,120330.0,0.11312298]
[1752804214476,1.59353428,120340.0,120330.0,0.11312298]
[1752804214874,1.95433428,120340.0,120330.0,0.11312298]
[1752804215072,0.96857428,120340.0,120330.0,0.11312298]
[1752804215287,1.95413428,120340.0,120330.0,0.11312298]
[1752804216682,1.97177363,120340.0,120330.0,0.11312298]
[1752804217481,1.97177363,120340.0,120330.0,0.08190158]
[1752804217482,2.38132251,120340.0,120330.0,0.08190158]
[1752804217681,0.18595884,120320.0,120310.0,0.12147142]
[1752804217880,1.64705595,120320.0,120310.0,0.12147142]
[1752804218081,1.77247332,120320.0,120310.0,0.12147142]
[1752804218282,1.77267332,120320.0,120310.0,0.12147142]
[1752804218477,0.1668465,120310.0,120300.0,0.43231]
[1752804218678,0.59442257,120310.0,120300.0,0.43231]
[1752804218881,0.7198421,120310.0,120300.0,0.43231]
[1752804219684,1.3464021,120310.0,120300.0,0.54479]
[1752804219982,0.7228421,120310.0,120300.0,0.55892]
[1752804220285,1.3464021,120310.0,120300.0,0.48574]
[1752804220577,1.3464021,120310.0,120300.0,0.12494]
[1752804220883,1.0826421,120310.0,120300.0,0.24391999]
[1752804221083,1.7072021,120310.0,120300.0,0.24391999]
[1752804221382,1.7072021,120310.0,120300.0,0.24291999]
[1752804221883,1.68956491,120310.0,120300.0,0.24291999]
[1752804222179,1.68956491,120310.0,120300.0,0.17455429]
[1752804222380,0.1661379,120280.0,120270.0,0.14601]